fUST/lending_fUST_20240804
["ID","MTS","AMOUNT","RATE_DAILY","PERIOD"]
[334087490,1722753068644,-500.0,0.0001714,2]
[334087491,1722753068653,-522.32179472,0.0001714,2]
[334087492,1722753068663,-237.3,0.0001726,2]
[334087493,1722753068672,-500.0,0.00017381,2]
[334087494,1722753068682,-3987.54,0.00017381,2]
[334087495,1722753068692,-500.0,0.00017381,2]
[334087496,1722753068701,-500.0,0.00017381,2]
[334087497,1722753068710,-500.0,0.00017381,2]
[334087498,1722753068721,-504.12,0.00017388,2]
[334087499,1722753068733,-2401.24,0.00017388,2]
[334087500,1722753068744,-194.5599409,0.00017389,2]
[334087501,1722753068754,-500.0,0.00017393,2]
[334087502,1722753068766,-500.0,0.00017393,2]
[334087503,1722753068777,-547.72,0.00017393,2]
[334087504,1722753068787,-643.45,0.00017393,2]
[334087505,1722753068798,-500.0,0.00017393,2]
[334087506,1722753068809,-500.0,0.00017393,2]
[334087507,1722753068820,-500.0,0.00017393,2]
[334087508,1722753068830,-1162.13,0.00017393,2]
[334087509,1722753068842,-500.0,0.00017393,2]
[334087510,1722753068855,-500.0,0.00017393,2]
[334087511,1722753068866,-500.0,0.00017393,2]
[334087512,1722753068878,-1071.67,0.00017393,2]
[334087513,1722753068887,-5198.37,0.00017393,2]
[334087514,1722753068899,-2263.84,0.00017393,2]
[334087515,1722753068909,-1222.93,0.00017393,2]
[334087516,1722753068921,-749.33,0.00017393,2]
[334087517,1722753068933,-519.5,0.00017393,2]
[334087518,1722753068945,-500.0,0.00017393,2]
[334087519,1722753068954,-500.0,0.00017401,2]
[334087520,1722753068965,-500.0,0.00017401,2]
[334087521,1722753069032,-500.0,0.00017401,2]
[334087522,1722753069042,-500.0,0.00017401,2]
[334087523,1722753069053,-417.92350513,0.00017401,2]
[334087524,1722753069064,-500.0,0.00017401,2]
[334087525,1722753069074,-500.0,0.00017401,2]
[334087526,1722753069084,-500.0,0.00017401,2]
[334087527,1722753069093,-500.0,0.00017401,2]
[334087528,1722753069103,-500.0,0.00017401,2]
[334087529,1722753069112,-500.0,0.00017401,2]
[334087530,1722753069121,-500.0,0.00017401,2]
[334087531,1722753069131,-500.0,0.00017401,2]
[334087532,1722753069140,-582.2,0.00017401,2]
[334087533,1722753069150,-500.0,0.00017401,2]
[334087534,1722753069162,-500.0,0.00017401,2]
[334087535,1722753069175,-523.54626451,0.00017401,2]
[334087536,1722753069184,-500.0,0.00017401,2]
[334087537,1722753069193,-500.0,0.00017401,2]
[334087538,1722753069203,-500.0,0.00017401,2]
[334087539,1722753069214,-500.0,0.00017401,2]
[334087540,1722753069224,-500.0,0.00017401,2]
[334087541,1722753069234,-500.0,0.00017401,2]
[334087542,1722753069244,-1672.91,0.00017401,2]
[334087543,1722753069253,-500.0,0.00017401,2]
[334087544,1722753069262,-500.0,0.00017401,2]
[334087545,1722753069271,-500.0,0.00017401,2]
[334087546,1722753069281,-500.0,0.00017401,2]
[334087547,1722753069292,-500.0,0.00017401,2]
[334087548,1722753069302,-500.0,0.00017401,2]
[334087549,1722753069313,-500.0,0.00017401,2]
[334087550,1722753069325,-513.40811255,0.00017401,2]
[334087551,1722753069334,-669.39,0.00017401,2]
[334087552,1722753069344,-500.0,0.00017401,2]
[334087553,1722753069355,-1313.41,0.00017401,2]
[334087554,1722753069367,-500.0,0.00017401,2]
[334087555,1722753069377,-500.0,0.00017401,2]
[334087556,1722753069388,-500.0,0.00017401,2]
[334087557,1722753069399,-500.0,0.00017401,2]
[334087558,1722753069412,-500.0,0.00017401,2]
[334087559,1722753069423,-500.0,0.00017401,2]
[334087560,1722753069434,-500.0,0.00017401,2]
[334087561,1722753069447,-500.0,0.00017401,2]
[334087562,1722753069458,-500.0,0.00017401,2]
[334087563,1722753069468,-500.0,0.00017401,2]
[334087564,1722753069478,-601.3,0.00017401,2]
[334087565,1722753069487,-500.0,0.00017401,2]
[334087566,1722753069496,-500.0,0.00017401,2]
[334087567,1722753069506,-500.0,0.00017402,2]
[334087568,1722753069515,-612.19,0.00017402,2]
[334087569,1722753069525,-500.0,0.00017402,2]
[334087570,1722753069534,-3319.8,0.00017402,2]
[334087571,1722753069543,-500.0,0.00017402,2]
[334087572,1722753069553,-500.0,0.00017402,2]
[334087573,1722753069563,-500.0,0.00017403,2]
[334087574,1722753069572,-500.0,0.00017403,2]
[334087575,1722753069581,-500.0,0.00017403,2]
[334087576,1722753069591,-200.0,0.00017403,2]
[334087577,1722753069601,-500.0,0.00017403,2]
[334087578,1722753069610,-500.0,0.00017403,2]
[334087579,1722753069619,-274.45270061,0.00017403,2]
[334087580,1722753069628,-217.85647214,0.00017403,2]
[334087581,1722753069638,-500.0,0.00017403,2]
[334087582,1722753069647,-500.0,0.00017403,2]
[334087583,1722753069656,-469.42424423,0.00017403,2]
[334087584,1722753069671,-500.0,0.00017403,2]
[334087585,1722753069680,-500.0,0.00017403,2]
[334087586,1722753069689,-628.3880829,0.00017403,2]
[334087587,1722753069699,-500.0,0.00017403,2]
[334087588,1722753069708,-500.0,0.00017403,2]
[334087589,1722753069717,-500.0,0.00017403,2]
[334087590,1722753069727,-762.82,0.00017403,2]
[334087591,1722753069736,-534.8,0.00017403,2]
[334087592,1722753069746,-500.0,0.00017403,2]
[334087593,1722753069755,-500.0,0.00017403,2]
[334087594,1722753069764,-500.0,0.00017403,2]
[334087595,1722753069774,-500.0,0.00017403,2]
[334087596,1722753069783,-500.0,0.00017403,2]
[334087597,1722753069793,-1021.17,0.00017403,2]
[334087598,1722753069802,-500.0,0.00017403,2]
[334087599,1722753069813,-500.0,0.00017403,2]
[334087600,1722753069822,-500.0,0.00017403,2]
[334087601,1722753069832,-500.0,0.00017403,2]
[334087602,1722753069841,-365.55836858,0.00017403,2]
[334087603,1722753069857,-500.0,0.00017403,2]
[334087604,1722753069868,-500.0,0.00017403,2]
[334087605,1722753069879,-500.0,0.00017403,2]
[334087606,1722753069890,-500.0,0.00017403,2]
[334087607,1722753069899,-500.0,0.00017403,2]
[334087608,1722753069913,-500.0,0.00017403,2]
[334087609,1722753069924,-500.0,0.00017403,2]
[334087610,1722753069933,-500.0,0.00017403,2]
[334087611,1722753069943,-500.0,0.00017403,2]
[334087612,1722753069952,-500.0,0.00017403,2]
[334087613,1722753069961,-500.0,0.00017403,2]
[334087614,1722753069971,-500.0,0.00017403,2]
[334087615,1722753069980,-500.0,0.00017403,2]
[334087616,1722753069990,-500.0,0.00017403,2]
[334087617,1722753069999,-500.0,0.00017403,2]
[334087618,1722753070008,-500.0,0.00017414,2]
[334087619,1722753070021,-505.68645602,0.00017414,2]
[334087620,1722753070030,-500.0,0.00017414,2]
[334087621,1722753070040,-500.0,0.00017414,2]
[334087622,1722753070049,-500.0,0.00017414,2]
[334087623,1722753070058,-545.08496457,0.00017414,2]
[334087624,1722753070068,-500.0,0.00017414,2]
[334087625,1722753070077,-3892.38675843,0.00017431,2]
[334087626,1722753070087,-237.3,0.00017534,2]
[334087627,1722753070097,-297.21655646,0.00017555,2]
[334087628,1722753070107,-500.0,0.00017655,2]
[334087629,1722753070117,-3987.54,0.00017655,2]
[334087630,1722753070127,-500.0,0.00017655,2]
[334087631,1722753070136,-401.73061731,0.00017655,2]
[334087632,1722753070148,-500.0,0.00017655,2]
[334087633,1722753070157,-504.12,0.00017662,2]
[334087634,1722753070169,-2401.24,0.00017662,2]
[334087635,1722753070179,-500.0,0.00017667,2]
[334087636,1722753070191,-500.0,0.00017667,2]
[334087637,1722753070200,-547.72,0.00017667,2]
[334087638,1722753070210,-643.45,0.00017667,2]
[334087639,1722753070221,-500.0,0.00017667,2]
[334087640,1722753070233,-500.0,0.00017667,2]
[334087641,1722753070244,-500.0,0.00017667,2]
[334087642,1722753070256,-1162.13,0.00017667,2]
[334087643,1722753070266,-500.0,0.00017667,2]
[334087644,1722753070276,-500.0,0.00017667,2]
[334087645,1722753070287,-500.0,0.00017667,2]
[334087646,1722753070298,-1071.67,0.00017667,2]
[334087647,1722753070309,-5198.37,0.00017667,2]
[334087648,1722753070321,-2263.84,0.00017667,2]
[334087649,1722753070331,-1222.93,0.00017667,2]
[334087650,1722753070342,-749.33,0.00017667,2]
[334087651,1722753070353,-519.5,0.00017667,2]
[334087652,1722753070364,-500.0,0.00017667,2]
[334087653,1722753070374,-500.0,0.00017675,2]
[334087654,1722753070385,-350.30086077,0.00017675,2]
[334087655,1722753070394,-500.0,0.00017675,2]
[334087656,1722753070404,-500.0,0.00017675,2]
[334087657,1722753070415,-500.0,0.00017675,2]
[334087658,1722753070425,-500.0,0.00017675,2]
[334087659,1722753070434,-500.0,0.00017675,2]
[334087660,1722753070444,-500.0,0.00017675,2]
[334087661,1722753070453,-500.0,0.00017675,2]
[334087662,1722753070463,-500.0,0.00017675,2]
[334087663,1722753070472,-500.0,0.00017675,2]
[334087664,1722753070481,-500.0,0.00017675,2]
[334087665,1722753070490,-582.2,0.00017675,2]
[334087666,1722753070500,-500.0,0.00017675,2]
[334087667,1722753070509,-500.0,0.00017675,2]
[334087668,1722753070519,-500.0,0.00017675,2]
[334087669,1722753070528,-500.0,0.00017675,2]
[334087670,1722753070537,-500.0,0.00017675,2]
[334087671,1722753070546,-500.0,0.00017675,2]
[334087672,1722753070556,-500.0,0.00017675,2]
[334087673,1722753070565,-500.0,0.00017675,2]
[334087674,1722753070574,-1672.91,0.00017675,2]
[334087675,1722753070583,-500.0,0.00017675,2]
[334087676,1722753070593,-500.0,0.00017675,2]
[334087677,1722753070603,-500.0,0.00017675,2]
[334087678,1722753070612,-500.0,0.00017675,2]
[334087679,1722753070621,-500.0,0.00017675,2]
[334087680,1722753070631,-500.0,0.00017675,2]
[334087681,1722753070640,-500.0,0.00017675,2]
[334087682,1722753070649,-669.39,0.00017675,2]
[334087683,1722753070660,-500.0,0.00017675,2]
[334087684,1722753070670,-1313.41,0.00017675,2]
[334087685,1722753070679,-500.0,0.00017675,2]
[334087686,1722753070689,-500.0,0.00017675,2]
[334087687,1722753070699,-500.0,0.00017675,2]
[334087688,1722753070708,-500.0,0.00017675,2]
[334087689,1722753070717,-500.0,0.00017675,2]
[334087690,1722753070727,-500.0,0.00017675,2]
[334087691,1722753070736,-500.0,0.00017675,2]
[334087692,1722753070745,-639.4580679,0.00017675,2]
[334087693,1722753070755,-500.0,0.00017675,2]
[334087694,1722753070764,-500.0,0.00017675,2]
[334087695,1722753070774,-601.3,0.00017675,2]
[334087696,1722753070784,-500.0,0.00017675,2]
[334087697,1722753070793,-500.0,0.00017675,2]
[334087698,1722753070803,-500.0,0.00017676,2]
[334087699,1722753070813,-612.19,0.00017676,2]
[334087700,1722753070823,-500.0,0.00017676,2]
[334087701,1722753070832,-3319.8,0.00017676,2]
[334087702,1722753070842,-500.0,0.00017676,2]
[334087703,1722753070862,-500.0,0.00017676,2]
[334087704,1722753070873,-313.11619612,0.00017677,2]
[334087705,1722753070883,-200.0,0.00017677,2]
[334087706,1722753070893,-500.0,0.00017677,2]
[334087707,1722753070903,-500.0,0.00017677,2]
[334087708,1722753070916,-500.0,0.00017677,2]
[334087709,1722753070926,-500.0,0.00017677,2]
[334087710,1722753070935,-500.0,0.00017677,2]
[334087711,1722753070945,-500.0,0.00017677,2]
[334087712,1722753070955,-500.0,0.00017677,2]
[334087713,1722753070964,-500.0,0.00017677,2]
[334087714,1722753070974,-762.82,0.00017677,2]
[334087715,1722753070983,-534.8,0.00017677,2]
[334087716,1722753070992,-500.0,0.00017677,2]
[334087717,1722753071002,-500.0,0.00017677,2]
[334087718,1722753071012,-500.0,0.00017677,2]
[334087719,1722753071022,-500.0,0.00017677,2]
[334087720,1722753071032,-502.720366,0.00017677,2]
[334087721,1722753071042,-1021.17,0.00017677,2]
[334087722,1722753071051,-500.0,0.00017677,2]
[334087723,1722753071061,-500.0,0.00017677,2]
[334087724,1722753071070,-174.96175305,0.00017677,2]
[334087725,1722753071080,-500.0,0.00017677,2]
[334087726,1722753071089,-500.0,0.00017677,2]
[334087727,1722753071099,-500.0,0.00017677,2]
[334087728,1722753071108,-500.0,0.00017677,2]
[334087729,1722753071118,-500.0,0.00017677,2]
[334087730,1722753071127,-277.58756244,0.00017677,2]
[334087731,1722753071137,-500.0,0.00017677,2]
[334087732,1722753071147,-500.0,0.00017677,2]
[334087733,1722753071156,-500.0,0.00017677,2]
[334087734,1722753071248,-500.0,0.00017677,2]
[334087735,1722753071259,-500.0,0.00017677,2]
[334087736,1722753071268,-519.13676385,0.00017677,2]
[334087737,1722753071278,-500.0,0.00017677,2]
[334087738,1722753071288,-500.0,0.00017677,2]
[334087739,1722753071298,-500.0,0.00017677,2]
[334087740,1722753071307,-500.0,0.00017677,2]
[334087741,1722753071316,-500.0,0.00017688,2]
[334087742,1722753071325,-500.0,0.00017688,2]
[334087743,1722753071334,-500.0,0.00017688,2]
[334087744,1722753071343,-500.0,0.00017688,2]
[334087745,1722753071352,-500.0,0.00017688,2]
[334087746,1722753071362,-237.3,0.00017808,2]
[334087747,1722753071371,-600.0,0.00017815,2]
[334087748,1722753071380,-1717.8602707,0.0001784,2]
[334087749,1722753071389,-170.05525585,0.00017882,2]
[334087750,1722753071399,-500.0,0.00017929,2]
[334087751,1722753071408,-3987.54,0.00017929,2]
[334087752,1722753071419,-500.0,0.00017929,2]
[334087753,1722753071429,-500.0,0.00017929,2]
[334087754,1722753071438,-504.12,0.00017936,2]
[334087755,1722753071447,-2401.24,0.00017936,2]
[334087756,1722753071456,-500.0,0.00017941,2]
[334087757,1722753071465,-500.0,0.00017941,2]
[334087758,1722753071474,-547.72,0.00017941,2]
[334087759,1722753071484,-643.45,0.00017941,2]
[334087760,1722753071493,-500.0,0.00017941,2]
[334087761,1722753071503,-500.0,0.00017941,2]
[334087762,1722753071512,-1162.13,0.00017941,2]
[334087763,1722753071522,-428.77759558,0.00017941,2]
[334087764,1722753071531,-256.05663905,0.00017941,2]
[334087765,1722753071541,-500.0,0.00017941,2]
[334087766,1722753071551,-1071.67,0.00017941,2]
[334087767,1722753071560,-5198.37,0.00017941,2]
[334087768,1722753071569,-2263.84,0.00017941,2]
[334087769,1722753071579,-1222.93,0.00017941,2]
[334087770,1722753071588,-749.33,0.00017941,2]
[334087771,1722753071597,-519.5,0.00017941,2]
[334087772,1722753071607,-500.0,0.00017941,2]
[334087773,1722753071616,-500.0,0.00017949,2]
[334087774,1722753071626,-500.0,0.00017949,2]
[334087775,1722753071635,-500.0,0.00017949,2]
[334087776,1722753071645,-500.0,0.00017949,2]
[334087777,1722753071655,-500.0,0.00017949,2]
[334087778,1722753071667,-500.0,0.00017949,2]
[334087779,1722753071678,-500.0,0.00017949,2]
[334087780,1722753071688,-500.0,0.00017949,2]
[334087781,1722753071698,-500.0,0.00017949,2]
[334087782,1722753071707,-500.0,0.00017949,2]
[334087783,1722753071717,-582.2,0.00017949,2]
[334087784,1722753071727,-500.0,0.00017949,2]
[334087785,1722753071736,-500.0,0.00017949,2]
[334087786,1722753071746,-500.0,0.00017949,2]
[334087787,1722753071756,-500.0,0.00017949,2]
[334087788,1722753071766,-500.0,0.00017949,2]
[334087789,1722753071775,-500.0,0.00017949,2]
[334087790,1722753071784,-500.0,0.00017949,2]
[334087791,1722753071794,-511.00027082,0.00017949,2]
[334087792,1722753071803,-1672.91,0.00017949,2]
[334087793,1722753071813,-500.0,0.00017949,2]
[334087794,1722753071823,-500.0,0.00017949,2]
[334087795,1722753071832,-500.0,0.00017949,2]
[334087796,1722753071842,-394.40034282,0.00017949,2]
[334087797,1722753071854,-500.0,0.00017949,2]
[334087798,1722753071864,-669.39,0.00017949,2]
[334087799,1722753071873,-500.0,0.00017949,2]
[334087800,1722753071882,-1313.41,0.00017949,2]
[334087801,1722753071893,-500.0,0.00017949,2]
[334087802,1722753071902,-500.0,0.00017949,2]
[334087803,1722753071913,-500.0,0.00017949,2]
[334087804,1722753071923,-500.0,0.00017949,2]
[334087805,1722753071933,-500.0,0.00017949,2]
[334087806,1722753071942,-500.0,0.00017949,2]
[334087807,1722753071951,-500.0,0.00017949,2]
[334087808,1722753071961,-500.0,0.00017949,2]
[334087809,1722753071970,-500.0,0.00017949,2]
[334087810,1722753071979,-601.3,0.00017949,2]
[334087811,1722753071988,-500.0,0.00017949,2]
[334087812,1722753071998,-331.29716066,0.00017949,2]
[334087813,1722753072007,-500.0,0.0001795,2]
[334087814,1722753072017,-612.19,0.0001795,2]
[334087815,1722753072026,-507.06393872,0.0001795,2]
[334087816,1722753072035,-3319.8,0.0001795,2]
[334087817,1722753072044,-500.0,0.0001795,2]
[334087818,1722753072053,-500.0,0.0001795,2]
[334087819,1722753072062,-200.0,0.00017951,2]
[334087820,1722753072072,-500.0,0.00017951,2]
[334087821,1722753072081,-500.0,0.00017951,2]
[334087822,1722753072090,-500.0,0.00017951,2]
[334087823,1722753072099,-500.0,0.00017951,2]
[334087824,1722753072108,-500.0,0.00017951,2]
[334087825,1722753072117,-500.0,0.00017951,2]
[334087826,1722753072126,-500.0,0.00017951,2]
[334087827,1722753072135,-500.0,0.00017951,2]
[334087828,1722753072144,-762.82,0.00017951,2]
[334087829,1722753072154,-534.8,0.00017951,2]
[334087830,1722753072164,-500.0,0.00017951,2]
[334087831,1722753072173,-500.0,0.00017951,2]
[334087832,1722753072183,-500.0,0.00017951,2]
[334087833,1722753072192,-500.0,0.00017951,2]
[334087834,1722753072202,-1021.17,0.00017951,2]
[334087835,1722753072211,-500.0,0.00017951,2]
[334087836,1722753072220,-500.0,0.00017951,2]
[334087837,1722753072229,-174.39734376,0.00017951,2]
[334087838,1722753072238,-259.14870643,0.00017951,2]
[334087839,1722753072247,-514.61048618,0.00017951,2]
[334087840,1722753072256,-500.0,0.00017951,2]
[334087841,1722753072265,-500.0,0.00017951,2]
[334087842,1722753072274,-500.0,0.00017951,2]
[334087843,1722753072283,-500.0,0.00017951,2]
[334087844,1722753072292,-500.0,0.00017951,2]
[334087845,1722753072302,-500.0,0.00017951,2]
[334087846,1722753072311,-500.0,0.00017951,2]
[334087847,1722753072320,-500.0,0.00017951,2]
[334087848,1722753072329,-500.0,0.00017951,2]
[334087849,1722753072338,-604.75481189,0.00017951,2]
[334087850,1722753072348,-500.0,0.00017951,2]
[334087851,1722753072357,-500.0,0.00017962,2]
[334087852,1722753072366,-500.0,0.00017962,2]
[334087853,1722753072375,-500.0,0.00017962,2]
[334087854,1722753072385,-230.49266698,0.00017962,2]
[334087855,1722753072394,-500.0,0.00017962,2]
[334087856,1722753072403,-334.49718338,0.00018,2]
[334087857,1722753072414,-183.0,0.00018,2]
[334087858,1722753072423,-155.45147495,0.00018,2]
[334087859,1722753072432,-200.0,0.00018,2]
[334087860,1722753072442,-1000.0,0.00018,2]
[334087861,1722753072452,-600.0,0.00018,2]
[334087862,1722753072461,-237.3,0.00018082,2]
[334087863,1722753072470,-153.0,0.00018082,2]
[334087864,1722753072479,-1941.54944801,0.00018108,2]
[334087865,1722753072488,-843.15246515,0.00018125,2]
[334087866,1722753072497,-492.40339763,0.00018125,2]
[334087867,1722753072506,-600.0,0.00018186,2]
[334087868,1722753072516,-510.004396,0.00018203,2]
[334087869,1722753072525,-3987.54,0.00018203,2]
[334087870,1722753072536,-500.0,0.00018203,2]
[334087871,1722753072544,-500.0,0.00018203,2]
[334087872,1722753072554,-504.12,0.0001821,2]
[334087873,1722753072563,-2401.24,0.0001821,2]
[334087874,1722753072573,-500.0,0.00018215,2]
[334087875,1722753072582,-500.0,0.00018215,2]
[334087876,1722753072595,-547.72,0.00018215,2]
[334087877,1722753072604,-643.45,0.00018215,2]
[334087878,1722753072613,-500.0,0.00018215,2]
[334087879,1722753072622,-500.0,0.00018215,2]
[334087880,1722753072631,-1162.13,0.00018215,2]
[334087881,1722753072641,-500.0,0.00018215,2]
[334087882,1722753072650,-1071.67,0.00018215,2]
[334087883,1722753072659,-5198.37,0.00018215,2]
[334087884,1722753072673,-2263.84,0.00018215,2]
[334087885,1722753072683,-1222.93,0.00018215,2]
[334087886,1722753072691,-749.33,0.00018215,2]
[334087887,1722753072700,-519.5,0.00018215,2]
[334087888,1722753072712,-500.0,0.00018215,2]
[334087889,1722753072721,-500.0,0.00018223,2]
[334087890,1722753072730,-500.0,0.00018223,2]
[334087891,1722753072739,-500.0,0.00018223,2]
[334087892,1722753072748,-500.0,0.00018223,2]
[334087893,1722753072757,-500.0,0.00018223,2]
[334087894,1722753072769,-500.0,0.00018223,2]
[334087895,1722753072780,-500.0,0.00018223,2]
[334087896,1722753072789,-500.0,0.00018223,2]
[334087897,1722753072799,-582.2,0.00018223,2]
[334087898,1722753072808,-500.0,0.00018223,2]
[334087899,1722753072819,-500.0,0.00018223,2]
[334087900,1722753072828,-500.0,0.00018223,2]
[334087901,1722753072838,-500.0,0.00018223,2]
[334087902,1722753072848,-500.0,0.00018223,2]
[334087903,1722753072862,-500.0,0.00018223,2]
[334087904,1722753072871,-1672.91,0.00018223,2]
[334087905,1722753072883,-500.0,0.00018223,2]
[334087906,1722753072895,-500.0,0.00018223,2]
[334087907,1722753072905,-500.0,0.00018223,2]
[334087908,1722753072917,-669.39,0.00018223,2]
[334087909,1722753072927,-500.0,0.00018223,2]
[334087910,1722753072937,-1313.41,0.00018223,2]
[334087911,1722753072946,-500.0,0.00018223,2]
[334087912,1722753072956,-500.0,0.00018223,2]
[334087913,1722753072966,-500.0,0.00018223,2]
[334087914,1722753072978,-500.0,0.00018223,2]
[334087915,1722753072987,-358.87397365,0.00018223,2]
[334087916,1722753072997,-500.0,0.00018223,2]
[334087917,1722753073006,-500.0,0.00018223,2]
[334087918,1722753073016,-500.0,0.00018223,2]
[334087919,1722753073025,-500.0,0.00018223,2]
[334087920,1722753073035,-601.3,0.00018223,2]
[334087921,1722753073044,-500.0,0.00018223,2]
[334087922,1722753073054,-500.0,0.00018224,2]
[334087923,1722753073064,-612.19,0.00018224,2]
[334087924,1722753073073,-3319.8,0.00018224,2]
[334087925,1722753073083,-500.0,0.00018224,2]
[334087926,1722753073093,-500.0,0.00018224,2]
[334087927,1722753073102,-200.0,0.00018225,2]
[334087928,1722753073112,-500.0,0.00018225,2]
[334087929,1722753073122,-500.0,0.00018225,2]
[334087930,1722753073131,-500.0,0.00018225,2]
[334087931,1722753073140,-500.0,0.00018225,2]
[334087932,1722753073148,-500.0,0.00018225,2]
[334087933,1722753073158,-500.0,0.00018225,2]
[334087934,1722753073168,-500.0,0.00018225,2]
[334087935,1722753073177,-500.0,0.00018225,2]
[334087936,1722753073187,-762.82,0.00018225,2]
[334087937,1722753073197,-534.8,0.00018225,2]
[334087938,1722753073206,-500.0,0.00018225,2]
[334087939,1722753073215,-500.0,0.00018225,2]
[334087940,1722753073224,-500.0,0.00018225,2]
[334087941,1722753073234,-612.63562406,0.00018225,2]
[334087942,1722753073243,-1021.17,0.00018225,2]
[334087943,1722753073252,-500.0,0.00018225,2]
[334087944,1722753073261,-500.0,0.00018225,2]
[334087945,1722753073271,-500.0,0.00018225,2]
[334087946,1722753073280,-500.0,0.00018225,2]
[334087947,1722753073291,-500.0,0.00018225,2]
[334087948,1722753073300,-500.0,0.00018225,2]
[334087949,1722753073309,-202.35990225,0.00018225,2]
[334087950,1722753073319,-500.0,0.00018225,2]
[334087951,1722753073329,-500.0,0.00018225,2]
[334087952,1722753073339,-500.0,0.00018225,2]
[334087953,1722753073348,-505.51978104,0.00018225,2]
[334087954,1722753073357,-500.0,0.00018225,2]
[334087955,1722753073367,-500.0,0.00018236,2]
[334087956,1722753073376,-500.0,0.00018236,2]
[334087957,1722753073386,-553.66478,0.00018236,2]
[334087958,1722753073395,-160.0,0.00018298,5]
[334087959,1722753073404,-154.87800579,0.00018302,2]
[334087960,1722753073416,-337.08857677,0.00018302,2]
[334087961,1722753073426,-845.47187628,0.00018346,2]
[334087962,1722753073436,-237.3,0.00018356,2]
[334087963,1722753073448,-261.15018643,0.00018356,2]
[334087964,1722753073459,-944.01872097,0.00018371,2]
[334087965,1722753073469,-3987.54,0.00018477,2]
[334087966,1722753073480,-500.0,0.00018477,2]
[334087967,1722753073490,-500.0,0.00018477,2]
[334087968,1722753073501,-504.12,0.00018484,2]
[334087969,1722753073511,-2401.24,0.00018484,2]
[334087970,1722753073521,-500.0,0.00018489,2]
[334087971,1722753073532,-500.0,0.00018489,2]
[334087972,1722753073544,-547.72,0.00018489,2]
[334087973,1722753073556,-643.45,0.00018489,2]
[334087974,1722753073567,-500.0,0.00018489,2]
[334087975,1722753073662,-500.0,0.00018489,2]
[334087976,1722753073674,-1162.13,0.00018489,2]
[334087977,1722753073684,-236.87080341,0.00018489,2]
[334087978,1722753073694,-1071.67,0.00018489,2]
[334087979,1722753073704,-5198.37,0.00018489,2]
[334087980,1722753073713,-2263.84,0.00018489,2]
[334087981,1722753073723,-1222.93,0.00018489,2]
[334087982,1722753073733,-749.33,0.00018489,2]
[334087983,1722753073743,-519.5,0.00018489,2]
[334087984,1722753073754,-500.0,0.00018489,2]
[334087985,1722753073765,-500.0,0.00018497,2]
[334087986,1722753073776,-500.0,0.00018497,2]
[334087987,1722753073787,-500.0,0.00018497,2]
[334087988,1722753073798,-500.0,0.00018497,2]
[334087989,1722753073809,-500.0,0.00018497,2]